Cogmind - Beta 10.1 @@@ ROGUE MODE // 2021.04.29 @ 15:08:07 Player: Farfid Result: Destroyed by as-78140 with Assembled Blade Performance ------------- Evolutions (1) 500 Regions Visited (3) 600 Robots Destroyed (48) 240 Value Destroyed (991) 991 Prototype IDs (1) 20 Alien Tech Used (0) 0 Bonus (8) 8 TOTAL SCORE: 2359 Bonus ------- High Alert Combat Kills 8 Cogmind --------- Core Integrity 0/400 Matter 256/300 Energy 125/125 System Corruption 1% Temperature Cool (0) Movement Rolling (93) Location -9/Mines Parts ------- > --- POWER (1) -------- Light Ion Engine > --- PROPULSION (4) --- Wheel Compact Wheel Compact Wheel > --- UTILITY (2) ------ Large Storage Unit > --- WEAPON (2) ------- Improved Assault Rifle > --- INVENTORY (10) --- Improved Ion Engine Compact Wheel Large Storage Unit Improved Assault Rifle Peak State ------------ > --- POWER ------------ Improved Ion Engine > --- PROPULSION ------- Hover Unit Hover Unit Hover Unit Improved Hover Unit > --- UTILITY ---------- Large Storage Unit > --- WEAPON ----------- Autogun Improved Assault Rifle > --- INVENTORY -------- Improved Ion Engine Large Storage Unit High-capacity Matter Pod Beam Cannon Light Assault Rifle Light Assault Rifle Autogun Improved Assault Rifle Improved Assault Rifle [Rating: 14] Favorites ----------- Power Ion Engine Engine Ion Engine Propulsion Wheel Treads Light Treads Wheel Wheel Hover Unit Hover Unit Utility Large Storage Unit Storage Large Storage Unit Weapon Light Assault Rifle Energy Cannon Beam Cannon Ballistic Gun Light Assault Rifle Build | -11 -10 -9 -9 ------- Run | Scr Mat Mat Min Slots Evolved 2 | . . 2 . Power . | . . . . Propulsion 2 | . . 2 . Utility . | . . . . Weapon . | . . . . Parts Attached 46 | 6 14 13 13 Power 7 | 1 3 2 1 Engine 7 | 1 3 2 1 Core . | . . . . Reactor . | . . . . Propulsion 18 | 2 5 4 7 Treads 1 | . 1 . . Leg . | . . . . Wheel 11 | 2 2 . 7 Hover 6 | . 2 4 . Flight . | . . . . Utility 5 | 1 2 1 1 Device . | . . . . Storage 5 | 1 2 1 1 Processor . | . . . . Hackware . | . . . . Protection . | . . . . Artifact . | . . . . Weapon 16 | 2 4 6 4 Energy Gun . | . . . . Energy Cannon 1 | . 1 . . Ballistic Gun 15 | 2 3 6 4 Ballistic Cannon . | . . . . Launcher . | . . . . Special Weapon . | . . . . Impact Weapon . | . . . . Slashing Weapon . | . . . . Piercing Weapon . | . . . . Special Melee Weapon . | . . . . Unidentified Prototypes 1 | . . 1 . Parts Lost 23 | . 6 5 12 Power 2 | . 1 . 1 Propulsion 10 | . 2 2 6 Utility . | . . . . Weapon 11 | . 3 3 5 Highest Loss Streak 5 | . 3 2 5 Average Slot Usage (%) 72 | . 82 68 58 Engine 11 | . 13 11 6 Treads 1 | . 1 4 . Wheel 15 | . 22 6 16 Hover 5 | . 2 12 3 Storage 12 | . 14 11 10 Ballistic Gun 24 | . 27 21 21 Naked Turns 3 | . . . 3 Heaviest Build 33 | 11 23 33 29 Greatest Support 58 | 20 20 26 58 Greatest Overweight (x) 6 | . 2 3 6 Average Overweight (x) . | . . 1 . Largest Inventory Capacity 14 | 6 14 14 10 Average Capacity 8 | 4 7 9 9 Most Carried 10 | 4 8 9 10 Average Carried 5 | . 4 7 5 Final Capacity 10 | 6 8 10 10 Final Carried 9 | . 5 9 4 Class Distribution -------------------- 76% | Mutant 23% | Scavenger-Mutant Dominant Class ---------------- Mutant | -10/Materials Mutant | -9/Materials Mutant | -9/Mines Resources | -11 -10 -9 -9 ----------- Run | Scr Mat Mat Min Matter Collected 1365 | 198 322 549 296 Remotely . | . . . . Salvage Created 1771 | . 535 869 367 Parts 110 | . 36 58 16 Haulers Intercepted 5 | . 2 3 . Recyclers Shooed 2 | . . . 2 Parts Field Recycled . | . . . . Retrieved Matter . | . . . . Parts Self-Destructed . | . . . . Prevented . | . . . . Kills | -11 -10 -9 -9 ------- Run | Scr Mat Mat Min Combat Hostiles Destroyed 33 | . 13 14 6 Guns 32 | . 12 14 6 Cannons 1 | . 1 . . Classes Destroyed 12 | . 4 4 4 Builder 1 | . . . 1 Tunneler 1 | . . . 1 Hauler 5 | . 2 3 . Recycler 4 | . . 1 3 Watcher 4 | . 2 2 . Swarmer 12 | . 6 3 3 Grunt 11 | . 7 4 . Brawler 1 | . . 1 . Duelist 1 | . . 1 . Sentry 5 | . . 5 . Demolisher 1 | . . . 1 Assembled 2 | . . . 2 Best Kill Streak 6 | . 5 6 4 Combat Bots Only 5 | . 5 5 3 Max Kills in Single Turn 1 | . 1 1 1 Gunslinging . | . . . . Exploded . | . . . . Melee . | . . . . Uniques/NPCs Destroyed . | . . . . Combat | -11 -10 -9 -9 -------- Run | Scr Mat Mat Min Damage Taken 2610 | . 791 679 1140 Core 606 | . 196 127 283 Absorbed by Shields . | . . . . Core Remaining (%) 60 | 100 21 . . Volleys Fired 192 | . 75 72 45 Largest 2 | . 2 2 2 Hottest 80 | . 80 80 46 Shots Fired 379 | . 150 142 87 Gun 371 | . 147 137 87 Cannon 8 | . 3 5 . Launcher . | . . . . Special . | . . . . Kinetic 371 | . 147 137 87 Thermal 8 | . 3 5 . Explosive . | . . . . Electromagnetic . | . . . . Robot Hit Streak 12 | . 12 8 5 Robot Miss Streak 15 | . 15 5 5 Penetration Max . | . . . . Secondary Targets 6 | . 2 3 1 Max Gunslinging Chain 1 | . 1 1 1 Shots Hit Robots 216 | . 84 82 50 Core Hits 86 | . 34 32 20 Critical Hits 3 | . 1 . 2 Critical Kills 2 | . 1 . 1 Critical Parts Destroyed 1 | . . . 1 Melee Attacks . | . . . . Impact . | . . . . Slashing . | . . . . Piercing . | . . . . Sneak Attacks . | . . . . Combat Hostiles . | . . . . Follow-up Attacks . | . . . . Damage Inflicted 2433 | . 705 1068 660 Guns 2362 | . 687 1015 660 Cannons 71 | . 18 53 . Explosions . | . . . . Melee . | . . . . Ramming . | . . . . Kinetic 2362 | . 687 1015 660 Thermal 71 | . 18 53 . Explosive . | . . . . Electromagnetic . | . . . . Impact . | . . . . Slashing . | . . . . Piercing . | . . . . Highest Corruption 1 | . . 1 1 Average Corruption 1 | . . 1 1 Corruption Purged . | . . . . Effects 1 | . . . 1 Message Errors 1 | . . . 1 Overload Shots . | . . . . Overflow Damage . | . . . . Projectiles . | . . . . Explosions . | . . . . Melee . | . . . . Knockbacks . | . . . . Impact . | . . . . Kinetic . | . . . . Secondary . | . . . . Self-Inflicted Damage . | . . . . Shots . | . . . . Rammed . | . . . . Targets Rammed . | . . . . Kicked . | . . . . Crushed . | . . . . Highest Temperature 107 | . 80 107 19 Average Temperature 15 | . 15 16 6 Received Heat Transfer 540 | . 237 243 60 Siege Activations . | . . . . Robots Corrupted . | . . . . Combat Hostiles . | . . . . Parts Fried . | . . . . Impact Corruptions . | . . . . Robots Melted . | . . . . Combat Hostiles . | . . . . Parts Melted . | . . . . Heat Transferred 148 | . 37 111 . Parts Sabotaged . | . . . . Parts Stolen . | . . . . Parts Stripped . | . . . . Power Chain Reactions . | . . . . Missiles Intercepted . | . . . . Alert | -11 -10 -9 -9 ------- Run | Scr Mat Mat Min Peak Influence 403 | . 246 403 161 Initial 103 | . . 103 101 Average 139 | . 85 230 131 Maximum Alert Level 2 | . 1 2 . Low Security (%) 75 | 100 96 27 100 Level 1 23 | . 3 71 . Level 2 . | . . . . Level 3 . | . . . . Level 4 . | . . . . Level 5 . | . . . . High Security . | . . . . Max Security . | . . . . Squads Dispatched 4 | . 2 2 . Investigation 1 | . 1 . . Extermination . | . . . . Reinforcement 3 | . 1 2 . Assault . | . . . . Garrison . | . . . . Intercept . | . . . . Construction Impeded . | . . . . Haulers Reinforced . | . . . . Stealth | -11 -10 -9 -9 --------- Run | Scr Mat Mat Min Distress Signals 9 | . 3 6 . Communications Jammed . | . . . . Distress Signals . | . . . . Times Spotted 62 | . 21 21 20 Peak Tracking Total 14 | . 4 6 14 Tactical Retreats 2 | . 1 1 . Traps | -11 -10 -9 -9 ------- Run | Scr Mat Mat Min Traps Triggered 3 | . 2 1 . Indirectly . | . . . . Trap Hack Attempts . | . . . . Triggered . | . . . . Disarmed . | . . . . Reprogrammed . | . . . . Reused . | . . . . Traps Extracted . | . . . . Installed . | . . . . Triggered . | . . . . Machines | -11 -10 -9 -9 ---------- Run | Scr Mat Mat Min Machines Disabled . | . . . . Max in Single Turn . | . . . . Machines Sabotaged . | . . . . Garrisons Compromised . | . . . . Overloaded Fab Kills . | . . . . Fab Network Shutdowns . | . . . . Hacking | -11 -10 -9 -9 --------- Run | Scr Mat Mat Min Machines Accessed 7 | . 3 4 . Terminals 4 | . 1 3 . Fabricators . | . . . . Repair Stations . | . . . . Recycling Units 2 | . 2 . . Scanalyzers 1 | . . 1 . Garrison Access . | . . . . Total Hacks 18 | . 5 13 . Successful 12 | . 3 9 . Failed 6 | . 2 4 . Catastrophic 1 | . . 1 . Database Lockouts . | . . . . Manual 4 | . 3 1 . Terminals 9 | . 2 7 . Fabricators . | . . . . Repair Stations . | . . . . Recycling Units 3 | . 3 . . Scanalyzers 6 | . . 6 . Garrison Access . | . . . . Terminal Hacks 5 | . 2 3 . Record 1 | . . 1 . Robot Analysis 1 | . . 1 . Terminal Index 1 | . 1 . . Repair Station Index 1 | . 1 . . Locate Traps 1 | . . 1 . Fabricator Hacks . | . . . . Repair Station Hacks . | . . . . Recycling Unit Hacks . | . . . . Scanalyzer 6 | . . 6 . Insert Component 3 | . . 3 . Analyze 3 | . . 3 . Garrison Access Hacks . | . . . . Unauthorized Hacks 1 | . 1 . . Terminals . | . . . . Fabricators . | . . . . Repair Stations . | . . . . Recycling Units 1 | . 1 . . Tunnel 1 | . 1 . . Scanalyzers . | . . . . Garrison Access . | . . . . Data Cores Recovered . | . . . . Used . | . . . . Hacking Detections 5 | . 2 3 . Full Trace Events 1 | . 1 . . Feedback Events . | . . . . Feedback Blocked . | . . . . Robot Schematics Acquired . | . . . . Robots Built . | . . . . Matter . | . . . . Time . | . . . . Total Robot Build Rating . | . . . . Part Schematics Acquired 3 | . . 3 . Parts Built . | . . . . Matter . | . . . . Time . | . . . . Total Part Build Rating . | . . . . Parts Repaired . | . . . . Time . | . . . . Parts Recycled . | . . . . Recycled Matter . | . . . . Retrieved Matter . | . . . . Retrieved Components . | . . . . Parts Scanalyzed 3 | . . 3 . Part Schematics Acquired 3 | . . 3 . Parts Damaged . | . . . . Bothacking | -11 -10 -9 -9 ------------ Run | Scr Mat Mat Min Used RIF Installer . | . . . . Robots Hacked . | . . . . Non-combat . | . . . . Combat . | . . . . Robot Hacks Applied . | . . . . Relay Couplers Released . | . . . . Robots Rewired . | . . . . Allies Hacked . | . . . . Hacks Repelled . | . . . . Allies | -11 -10 -9 -9 -------- Run | Scr Mat Mat Min Total Allies . | . . . . Largest Group . | . . . . Highest-Rated Group . | . . . . Highest-Rated Ally . | . . . . Total Orders . | . . . . Ally Attacks . | . . . . Total Damage . | . . . . Kills . | . . . . Allies Corrupted . | . . . . Allies Melted . | . . . . Intel | -11 -10 -9 -9 ------- Run | Scr Mat Mat Min Robot Analysis Total 1 | . . 1 . Derelict Logs Recovered . | . . . . Drone Launches . | . . . . Drone Recoveries . | . . . . Exploration | -11 -10 -9 -9 ------------- Run | Scr Mat Mat Min Turns Passed 1815 | 41 778 563 433 Spaces Moved 1154 | 42 579 289 244 Core 44 | 14 . . 30 Treads 7 | . 7 . . Legs . | . . . . Wheels 929 | 28 520 182 199 Hover 174 | . 52 107 15 Flight . | . . . . Fastest Speed 50 | 50 80 90 50 Average Speed 95 | 70 88 101 112 Slowest Speed 350 | 80 180 110 350 Overloaded Moves . | . . . . Propulsion Burnouts . | . . . . Robots Hopped . | . . . . Cave-ins Triggered . | . . . . Exploration Rate (%) 33 | 5 57 40 30 Regions Visited 3 Branch Regions 1 Pre-discovered Areas 1 | . 1 . . Known Exits Taken . | . . . . Unknown Exits Taken 3 | 1 1 1 . Scrap Searched 1 | . . . 1 Spaces Dug . | . . . . Terrain Destroyed . | . . . . Melee . | . . . . Projectile . | . . . . AOE . | . . . . Terrain Rammed . | . . . . Walls Destroyed . | . . . . Machines Disabled . | . . . . Actions | -11 -10 -9 -9 --------- Run | Scr Mat Mat Min Total 1557 | 52 731 447 327 Wait 92 | . 30 51 11 Move 1151 | 41 578 288 244 Hop . | . . . . Pick Up 54 | 5 22 16 11 Fast Attach 4 | 1 1 1 1 Attach 39 | 5 12 10 12 Detach 3 | . 2 1 . Swap 3 | . 1 2 . Drop 19 | . 10 6 3 Fire 192 | . 75 72 45 Melee . | . . . . Ram . | . . . . Kick . | . . . . Crush . | . . . . Escape Stasis . | . . . . Rewire . | . . . . Trap . | . . . . Miscellaneous . | . . . . Route ------- -11/Scrapyard -10/Materials -9/Materials (discovered 2 exits: [*Min] / [*Sto]) -9/Mines (discovered 1 exit: [*Mat]) History --------- Turn | Location | Event 6 | -11/Scrapyard | Discovered new exit (range 15) 42 | -11/Scrapyard | Entered Materials 319 | -10/Materials | Build established: Mutant 638 | -10/Materials | Core integrity fell below 50% 689 | -10/Materials | Lost 3 parts (2n1w) 802 | -10/Materials | Discovered new exit (range 16) 820 | -10/Materials | Entered another Materials area 820 | -9/Materials | Evolved 2 slots: Propulsion x2 1093 | -9/Materials | Discovered new exit (range 15) 1242 | -9/Materials | Discovered new exit (range 15) 1383 | -9/Materials | Entered Mines 1440 | -9/Mines | Lost 3 parts (2n1w) 1451 | -9/Mines | Assembled infested the area 1494 | -9/Mines | Core integrity fell below 50% 1523 | -9/Mines | Lost 5 parts (1p2n2w) 1674 | -9/Mines | Discovered new exit (range 11) 1789 | -9/Mines | Core integrity fell below 20% 1816 | -9/Mines | Destroyed by as-78140 with Assembled Blade Last Messages --------------- 01659_ U-05 Engineer builds a Wall. 01674_ EXIT=FOUND 01728_ Acquired 8 matter. 01736_ Acquired 4 matter. 01744_ R-06 Scavenger suffers critical hit. 01744_ R-06 Scavenger destroyed. 01745_ Extracted 4 matter. 01749_ Acquired Com. Wheel. 01760_ Acquired 10 matter. 01785_ T-07 Excavator system corrupted by crushing effect. 01786_ T-07 Excavator system terminally corrupted. 01793_ Com. Wheel destroyed. 01795_ Lgt. Assault Rifle destroyed. 01799_ Knocked back. 01803_ U-05 Engineer suffers critical hit. 01803_ Destroyed Wheel. 01805_ %Z9 OQ5&V&TU 01806_ Destroyed Asb. Hover Unit. 01809_ as-88359 destroyed. 01813_ Hvy. Assault Rifle destroyed. Map ----- +----------------------------------------------------+ | ??# #?# #???????# ## %#########?????? | | ???# #?# #??????## # # #??????????? | | ????# #?# #??????# # # #??????????? | | ???## ### #??????# # # ## #??????????? | | ??## #??????## #* # #??????????? | | ??# #??????# ## # #??????????? | | ??# #####??????## ## # #?###??????? | | ??# < ### ##??????????# # # ## ##?????? | | ??## ##?# ###????????## # ## # #?????? | | ???###???# ##????????# # ## # #?????? | | ?????????## #????????# # ### #??????? | | ??????????# #????????# # ### ##??????? | | ??????????# #????????###% ## ##???????? | | ??????????## #???????# # #????????? | | ???????????## #???????###! # #????????? | | ????????????### ##????????## ##???????? | | ???????????????###??????????# ####????? | | ????????????????????????????# # ##???? | | ????????????????????????????# ##??? | | ????????????????????????????#!!# ##?? | | ???????????#####????????????#!%| #?? | | ???????????# #???????###?#### ##? | | ???????????# #####?## #???## #? | | ???????????# % ### ##### !** " #? | | ???????????" != a ]%* #? | | ???????????" =%### %@ ! ## ##? | | ???????????#X% #??## ######## #??##?? | | ???????????# ! #????## ##??????## #???? | | ??????????# #??????####????????# #??? | | ????????? ???????????????????# #?? | | ???????%= ????????????????????# #?? | | ??????### ?????????????????????# #?? | | ????????## ??????????????????????# ##?? | | ?????????##???????????????????????## ##??? | | ???????????????????????????????????#######???? | | ?????????????????????????????????????????????? | | ?????????????????????????????????????????????? | | ?????????????????????????????????????????????? | | ?????????????????????????????????????????????? | | ?????????????????????????????????????????????? | | ?????????????????????????????????????????????? | | ?????????????????????????????????????????????? | | ?????????????????????????????????????????????? | | ?????????????????????????????????????????????? | | ?????????????????????????????????????????????? | | ?????????????????????????????????????????????? | | ?????????????????????????????????????????????? | | ?????????????????????????????????????????????? | | ?????????????????????????????????????????????? | | ?????????????????????????????????????????????? | +----------------------------------------------------+ Best States ------------- Heat Dissipation 28 Energy Generation 12 Energy Capacity 265 Matter Stores 300 Matter Capacity 300 Sight Range 16 Terrain Scan Density 10 Evasion (%) 50 Recoil Reduction 1 Item Schematics ----------------- Imp. Hover Unit | -9/Materials | Scanalyzed Lrg. Storage Unit | -9/Materials | Scanalyzed Hover Unit | -9/Materials | Scanalyzed Robot Schematics ------------------ None Fabricated ------------ Nothing Alien Tech Used ----------------- None Achievements -------------- None Challenges ------------ None Game ------ Seed DamperArmageddonElectrolaser Manual? 0 Play Time 00:18:17 Cumulative 165.8 hours Start 2021.04.29 @ 14:50:18 End 2021.04.29 @ 15:08:07 Sessions 1 Manual Loads 0 Difficulty Rogue Special Mode None Game No. 67 Rogue 67 Adventurer 0 Explorer 0 Win Type - Total 2 Types 2/0/0/0/0/0/0/0/0 Lore% 62 Gallery% 73 Achievement% 54 Wizard Run 0 Options --------- ASCII 0 Keyboard 0 Movement Mouse Keybinds 0 Fullscreen 2 Font 12/Smallcaps Map View 83x54 Tactical HUD 1 Map Filters NONE Filters NONE Steam X RUN: b4dbd3d6-333e-49da-a210-7a8c1f1fee34